Workbook

Sheet MORTGAGE REFINANCING
C1: MORTGAGE REFINANCING
C4: PERSONAL
C5: MARGINAL TAX RATE | E5: 6.00%
C6: RESALE PLAN (MONTHS) | E6: 60
C8: MORTGAGE TERMS
C9: ORIGINAL MORTGAGE AMOUNT | E9: $150,000.00
C10: CURRENT MORTGAGE RATE | E10: 4.00%
C11: ORIGINAL TERM (YEARS) | E11: 30
C12: MONTHS PAID | E12: 180
C13: NEW MORTGAGE RATE | E13: 3.00%
C14: NEW TERM (YEARS) | E14: 15
C15: POINTS | E15: 0
C17: REFINANCING FEES
C18: APPLICATION | E18: $200.00
C19: TITLE | E19: $2,000.00
C20: LEGAL | E20: $200.00
C21: OTHER | E21: $100.00
C22: POINTS | E22: =IFERROR(IF(SUM(E26),ROUND(E15/100*E26,0),""),"") -> 0
C23: TOTAL FEES | E23: =IFERROR(IF(SUM(E18:E22),SUM(E18:E22),""),"") -> $2,500.00
C25: ANALYSIS | D25: CURRENT | E25: PROPOSED
C26: MORTGAGE AMOUNT | D26: =IFERROR(IF(E11,PV(E10/12,E11*12-E12,-D27),""),"") -> $96,814.20 | E26: =IFERROR(D26,"") -> $96,814.20
C27: MORTGAGE PAYMENT | D27: =IFERROR(IF(E10,PMT(E10/12,E11*12,-E9),""),"") -> $716.12 | E27: =IFERROR(IF(E13,PMT(E13/12,E14*12,-E26),""),"") -> $668.58
C28: MONTHS TO RECOVER REFINANCING COSTS | E28: =IFERROR(IF(SUM(D27)-SUM(E27),E23/(D27-E27),""),"") -> 52.6
C29: MORTGAGE BALANCE AT RESALE | D29: =IFERROR(IF(E11,PV(E10/12,E11*12-E6-E12,-D27),""),"") -> $70,731.59 | E29: =IFERROR(IF(E13,PV(E13/12,E14*12-E6,-E27),""),"") -> $69,239.43
C30: PRINCIPAL REPAID TO RESALE | D30: =IFERROR(IF(SUM(D29),D26-D29,""),"") -> $26,082.61 | E30: =IFERROR(IF(SUM(E29),E26-E29,""),"") -> $27,574.77
C31: TOTAL PAYMENTS TO RESALE | D31: =IFERROR(IF(SUM(D29),D27*E6,""),"") -> $42,967.38 | E31: =IFERROR(IF(SUM(E29),E27*E6,""),"") -> $40,114.87
C32: TOTAL INTEREST TO RESALE | D32: =IFERROR(IF(SUM(D29),D31-D30,""),"") -> $16,884.77 | E32: =IFERROR(IF(SUM(E29),E31-E30,""),"") -> $12,540.10
C33: TAX DEDUCTION ON INTEREST | D33: =IFERROR(IF(SUM(D29),D32*E5,""),"") -> $1,013.09 | E33: =IFERROR(IF(SUM(E29),E32*E5,""),"") -> $752.41
C34: NET INTEREST COST TO RESALE | D34: =IFERROR(IF(SUM(D29),D32-D33,""),"") -> $15,871.68 | E34: =IFERROR(IF(SUM(E29),E32-E33,""),"") -> $11,787.69
C35: INTEREST SAVINGS (COSTS) | E35: =IFERROR(IF(SUM(D34),D34-E34,""),"") -> $4,083.99
C36: TOTAL SAVINGS (COSTS) | E36: =IFERROR(IF(SUM(D29),E35-E23,""),"") -> $1,583.99
